fUSD/lending_fUSD_20250225
["ID","MTS","AMOUNT","RATE_DAILY","PERIOD"]
[354386607,1740468731839,-500.0,0.00056164,120]
[354386608,1740468731849,-515.75,0.00056164,120]
[354386609,1740468731858,-1301.53,0.00056164,120]
[354386610,1740468731868,-500.0,0.00056164,120]
[354386611,1740468731879,-500.0,0.00056164,120]
[354386612,1740468731890,-500.0,0.00056164,120]
[354386613,1740468731901,-500.0,0.00056164,120]
[354386614,1740468731912,-1377.93,0.00056164,120]
[354386615,1740468731922,-519.39,0.00056164,120]
[354386616,1740468731935,-623.61,0.00056164,120]
[354386617,1740468731946,-500.0,0.00056164,120]
[354386618,1740468731956,-1303.38,0.00056164,120]
[354386619,1740468731967,-500.0,0.00056164,120]
[354386620,1740468731978,-500.0,0.00056164,120]
[354386621,1740468731989,-500.0,0.00056164,120]
[354386622,1740468731999,-500.0,0.00056164,120]
[354386623,1740468732010,-585.47,0.00056164,120]
[354386624,1740468732021,-552.97,0.00056164,120]
[354386625,1740468732031,-1349.4,0.00056164,120]
[354386626,1740468732041,-500.0,0.00056164,120]
[354386627,1740468732051,-741.84,0.00056164,120]
[354386628,1740468732065,-311.5708268,0.00056164,120]
[354386629,1740468732076,-500.0,0.00056164,120]
[354386630,1740468732097,-700.58,0.00056164,2]
[354386631,1740468732107,-2351.09,0.00056164,2]
[354386632,1740468732116,-500.0,0.00056164,120]
[354386633,1740468732128,-630.34185912,0.00056164,120]
[354386634,1740468732140,-994.98,0.00056164,30]
[354386635,1740468732156,-500.0,0.00056164,120]
[354386636,1740468732166,-500.0,0.00056164,120]
[354386637,1740468732176,-500.0,0.00056164,120]
[354386638,1740468732187,-500.0,0.00056164,120]
[354386639,1740468732197,-715.33,0.00056164,120]
[354386640,1740468732213,-1439.89,0.00056164,120]
[354386641,1740468732224,-500.0,0.00056164,120]
[354386642,1740468732235,-943.25,0.00056164,120]
[354386643,1740468732245,-523.63284155,0.00056164,120]
[354386644,1740468732255,-657.52,0.00056164,120]
[354386645,1740468732265,-500.0,0.00056164,120]
[354386646,1740468732274,-500.0,0.00056164,120]
[354386647,1740468732283,-523.79,0.00056164,120]
[354386648,1740468732294,-500.0,0.00056164,120]
[354386649,1740468732304,-377.46765481,0.00056164,120]
[354386650,1740468732317,-1664.27,0.00056164,120]
[354386651,1740468732327,-943.64,0.00056164,120]
[354386652,1740468732336,-516.4,0.00056164,120]
[354386653,1740468732348,-712.11,0.00056164,120]
[354386654,1740468732360,-515.37949861,0.00056164,120]
[354386655,1740468732374,-500.0,0.00056164,120]
[354386656,1740468732385,-500.0,0.00056164,120]
[354386657,1740468732395,-500.0,0.00056164,120]
[354386658,1740468732405,-888.35,0.00056164,120]
[354386659,1740468732416,-500.0,0.00056164,120]
[354386660,1740468732426,-500.0,0.00056164,120]
[354386661,1740468732437,-522.22,0.00056164,120]
[354386662,1740468732448,-1032.87,0.00056164,120]
[354386663,1740468732460,-500.0,0.00056164,120]
[354386664,1740468732470,-500.0,0.00056164,120]
[354386665,1740468732481,-1438.9,0.00056164,120]
[354386666,1740468732491,-570.8,0.00056164,120]
[354386667,1740468732501,-500.0,0.00056164,120]
[354386668,1740468732511,-815.66,0.00056164,120]
[354386669,1740468732522,-500.0,0.00056164,120]
[354386670,1740468732532,-500.0,0.00056164,120]
[354386671,1740468732543,-1275.45,0.00056164,120]
[354386672,1740468732553,-580.35088176,0.00056164,120]
[354386673,1740468732567,-3980.64,0.00056164,120]
[354386674,1740468732578,-500.0,0.00056164,120]
[354386675,1740468732590,-500.0,0.00056164,120]
[354386676,1740468732601,-500.0,0.00056164,120]
[354386677,1740468732613,-1206.75,0.00056164,120]
[354386678,1740468732624,-500.0,0.00056164,120]
[354386679,1740468732635,-1130.49,0.00056164,120]
[354386680,1740468732647,-1535.83,0.00056164,120]
[354386681,1740468732658,-1768.01,0.00056164,120]
[354386682,1740468732668,-326.5264859,0.00056164,120]
[354386683,1740468732679,-1200.87,0.00056164,120]
[354386684,1740468732689,-500.0,0.00056164,120]
[354386685,1740468732700,-664.86,0.00056164,120]
[354386686,1740468732712,-696.61,0.00056164,120]
[354386687,1740468732723,-1522.97,0.00056164,120]
[354386688,1740468732734,-500.0,0.00056164,120]
[354386689,1740468732745,-500.0,0.00056164,120]
[354386690,1740468732755,-500.0,0.00056164,120]
[354386691,1740468732766,-1319.72,0.00056164,120]
[354386692,1740468732776,-1393.05,0.00056164,120]
[354386693,1740468732786,-894.01,0.00056164,120]
[354386694,1740468732796,-986.38,0.00056164,120]
[354386695,1740468732805,-1886.6,0.00056164,120]
[354386696,1740468732818,-1184.76,0.00056164,120]
[354386697,1740468732827,-500.0,0.00056164,120]
[354386698,1740468732837,-2022.2,0.00056164,120]
[354386699,1740468732846,-1099.29,0.00056164,120]
[354386700,1740468732857,-1444.43,0.00056164,120]
[354386701,1740468732867,-500.0,0.00056164,120]
[354386702,1740468732877,-512.51,0.00056164,120]
[354386703,1740468732886,-517.98,0.00056164,120]
[354386704,1740468732896,-500.0,0.00056164,120]
[354386705,1740468732907,-1030.18,0.00056164,120]
[354386706,1740468732917,-971.18,0.00056164,120]
[354386707,1740468732928,-1142.3,0.00056164,120]
[354386708,1740468732939,-1194.04,0.00056164,120]
[354386709,1740468732952,-500.0,0.00056164,120]
[354386710,1740468732963,-500.0,0.00056164,120]
[354386711,1740468732973,-1748.82,0.00056164,120]
[354386712,1740468732983,-679.54,0.00056164,120]
[354386713,1740468732994,-1309.17,0.00056164,120]
[354386714,1740468733005,-500.0,0.00056164,120]
[354386715,1740468733016,-587.74,0.00056164,120]
[354386716,1740468733027,-778.7,0.00056164,120]
[354386717,1740468733038,-733.26,0.00056164,120]
[354386718,1740468733048,-730.67,0.00056164,120]
[354386719,1740468733059,-598.78,0.00056164,120]
[354386720,1740468733072,-1016.76,0.00056164,120]
[354386721,1740468733086,-789.0,0.00056164,120]
[354386722,1740468733096,-343.780273,0.00056164,120]
[354386723,1740468733107,-500.0,0.00056164,120]
[354386724,1740468733117,-500.0,0.00056164,120]
[354386725,1740468733131,-500.0,0.00056164,120]
[354386726,1740468733142,-1145.46,0.00056164,120]
[354386727,1740468733153,-500.0,0.00056164,120]
[354386728,1740468733164,-4362.55,0.00056164,120]
[354386729,1740468733177,-500.0,0.00056164,120]
[354386730,1740468733187,-631.53,0.00056164,120]
[354386731,1740468733197,-500.0,0.00056164,120]
[354386732,1740468733209,-500.0,0.00056164,120]
[354386733,1740468733220,-3017.39,0.00056164,120]
[354386734,1740468733230,-969.91,0.00056164,120]
[354386735,1740468733240,-759.14,0.00056164,120]
[354386736,1740468733251,-500.0,0.00056164,120]
[354386737,1740468733261,-334.40133577,0.00056164,120]
[354386738,1740468733272,-2220.86,0.00056164,120]
[354386739,1740468733282,-318.751745,0.00056164,120]
[354386740,1740468733292,-1553.03,0.00056164,120]
[354386741,1740468733304,-722.9,0.00056164,120]
[354386742,1740468733318,-500.0,0.00056164,120]
[354386743,1740468733329,-856.37,0.00056164,120]
[354386744,1740468733338,-910.26,0.00056164,120]
[354386745,1740468733348,-500.0,0.00056164,120]
[354386746,1740468733358,-887.73,0.00056164,120]
[354386747,1740468733368,-1830.19,0.00056164,120]
[354386748,1740468733379,-500.0,0.00056164,120]
[354386749,1740468733389,-500.0,0.00056164,120]
[354386750,1740468733400,-1715.31,0.00056164,120]
[354386751,1740468733411,-500.0,0.00056164,120]
[354386752,1740468733421,-500.0,0.00056164,120]
[354386753,1740468733431,-686.54,0.00056164,120]
[354386754,1740468733441,-500.0,0.00056164,120]
[354386755,1740468733452,-2424.1,0.00056164,120]
[354386756,1740468733465,-500.0,0.00056164,120]
[354386757,1740468733475,-500.0,0.00056164,120]
[354386758,1740468733486,-1521.55,0.00056164,120]
[354386759,1740468733497,-2919.48,0.00056164,120]
[354386760,1740468733508,-823.47,0.00056164,120]
[354386761,1740468733519,-1738.48,0.00056164,120]
[354386762,1740468733530,-915.34,0.00056164,120]
[354386763,1740468733541,-2711.99,0.00056164,120]
[354386764,1740468733552,-500.0,0.00056164,120]
[354386765,1740468733565,-576.99,0.00056164,120]
[354386766,1740468733575,-500.0,0.00056164,120]
[354386767,1740468733585,-2110.84,0.00056164,120]
[354386768,1740468733595,-637.74,0.00056164,120]
[354386769,1740468733605,-2315.41,0.00056164,120]
[354386770,1740468733615,-3875.43,0.00056164,7]
[354386771,1740468733625,-500.0,0.00056164,120]
[354386772,1740468733635,-1035.71,0.00056164,120]
[354386773,1740468733645,-500.0,0.00056164,120]
[354386774,1740468733654,-500.0,0.00056164,60]
[354386775,1740468733664,-750.25,0.00056164,120]
[354386776,1740468733674,-500.0,0.00056164,120]
[354386777,1740468733684,-500.0,0.00056164,120]
[354386778,1740468733694,-3264.88,0.00056164,120]
[354386779,1740468733705,-500.0,0.00056164,120]
[354386780,1740468733715,-2938.93,0.00056164,120]
[354386781,1740468733726,-500.0,0.00056164,120]
[354386782,1740468733736,-1210.86,0.00056164,120]
[354386783,1740468733747,-534.95,0.00056164,120]
[354386784,1740468733758,-703.65,0.00056164,120]
[354386785,1740468733769,-2458.44,0.00056164,120]
[354386786,1740468733780,-500.26708211,0.00056164,120]
[354386787,1740468733790,-1556.62,0.00056164,120]
[354386788,1740468733801,-500.0,0.00056164,120]
[354386789,1740468733816,-2761.69,0.00056164,120]
[354386790,1740468733829,-585.51,0.00056164,120]
[354386791,1740468733840,-2649.21,0.00056164,120]
[354386792,1740468733851,-1493.71,0.00056164,120]
[354386793,1740468733863,-1981.89,0.00056164,120]
[354386794,1740468733877,-689.83,0.00056164,120]
[354386795,1740468733887,-2553.02,0.00056164,120]
[354386796,1740468733899,-3211.4,0.00056164,120]
[354386797,1740468733909,-1352.07,0.00056164,120]
[354386798,1740468733919,-2909.1,0.00056164,120]
[354386799,1740468733929,-1667.75,0.00056164,120]
[354386800,1740468733939,-4349.64,0.00056164,120]
[354386801,1740468733950,-1519.71,0.00056164,120]
[354386802,1740468733961,-752.34,0.00056164,120]
[354386803,1740468733971,-864.91,0.00056164,120]
[354386804,1740468733982,-1290.66,0.00056164,120]
[354386805,1740468733993,-500.0,0.00056164,120]
[354386806,1740468734005,-910.81,0.00056164,5]
[354386807,1740468734015,-2901.27,0.00056164,120]
[354386808,1740468734026,-1857.67,0.00056164,120]
[354386809,1740468734035,-500.0,0.00056164,120]
[354386810,1740468734046,-2986.93,0.00056164,120]
[354386811,1740468734056,-2864.49,0.00056164,120]
[354386812,1740468734070,-500.0,0.00056164,120]
[354386813,1740468734084,-500.0,0.00056164,120]
[354386814,1740468734094,-2305.88,0.00056164,120]
[354386815,1740468734105,-2121.17,0.00056164,120]
[354386816,1740468734115,-500.0,0.00056164,120]
[354386817,1740468734128,-2477.45,0.00056164,120]
[354386818,1740468734141,-500.0,0.00056164,120]
[354386819,1740468734151,-1752.42,0.00056164,120]
[354386820,1740468734162,-538.64,0.00056164,120]
[354386821,1740468734172,-1452.1,0.00056164,120]
[354386822,1740468734182,-1822.96,0.00056164,120]
[354386823,1740468734192,-1851.24,0.00056164,120]
[354386824,1740468734203,-500.0,0.00056164,120]
[354386825,1740468734214,-607.87,0.00056164,120]
[354386826,1740468734226,-500.0,0.00056164,120]
[354386827,1740468734237,-510.38557545,0.00056164,120]
[354386828,1740468734248,-2265.65,0.00056164,120]
[354386829,1740468734259,-3192.11,0.00056164,120]
[354386830,1740468734270,-3707.86,0.00056164,120]
[354386831,1740468734283,-1530.35,0.00056164,120]
[354386832,1740468734294,-1400.72,0.00056164,120]
[354386833,1740468734306,-1470.7,0.00056164,120]
[354386834,1740468734321,-813.46,0.00056164,120]
[354386835,1740468734332,-1028.29,0.00056164,120]
[354386836,1740468734344,-2337.12,0.00056164,120]
[354386837,1740468734354,-640.5,0.00056164,120]
[354386838,1740468734365,-500.0,0.00056164,120]
[354386839,1740468734375,-3975.46,0.00056164,120]
[354386840,1740468734386,-3333.6,0.00056164,120]
[354386841,1740468734396,-500.0,0.00056164,120]
[354386842,1740468734406,-5873.49,0.00056164,120]
[354386843,1740468734417,-1036.75,0.00056164,120]
[354386844,1740468734428,-500.0,0.00056164,120]
[354386845,1740468734438,-2745.61,0.00056164,120]
[354386846,1740468734448,-613.18,0.00056164,120]
[354386847,1740468734458,-562.09,0.00056164,120]
[354386848,1740468734468,-707.46,0.00056164,120]
[354386849,1740468734478,-4540.04,0.00056164,120]
[354386850,1740468734489,-500.0,0.00056164,120]
[354386851,1740468734499,-1113.18,0.00056164,120]
[354386852,1740468734509,-2703.16,0.00056164,120]
[354386853,1740468734520,-3052.04,0.00056164,120]
[354386854,1740468734530,-522.41,0.00056164,120]
[354386855,1740468734541,-500.0,0.00056164,120]
[354386856,1740468734552,-551.64,0.00056164,120]
[354386857,1740468734562,-500.0,0.00056164,120]
[354386858,1740468734575,-1552.51,0.00056164,120]
[354386859,1740468734586,-1000.0,0.00056164,60]
[354386860,1740468734597,-2971.45,0.00056164,90]
[354386861,1740468734608,-1701.44,0.00056164,120]
[354386862,1740468734619,-553.8,0.00056164,120]
[354386863,1740468734629,-2581.17,0.00056164,120]
[354386864,1740468734640,-1833.0,0.00056164,120]
[354386865,1740468734650,-500.0,0.00056164,120]
[354386866,1740468734660,-506.89153504,0.00056164,120]
[354386867,1740468734670,-3435.08,0.00056164,120]
[354386868,1740468734679,-500.0,0.00056164,120]
[354386869,1740468734689,-500.0,0.00056164,120]
[354386870,1740468734698,-522.17,0.00056164,120]
[354386871,1740468734707,-500.0,0.00056164,120]
[354386872,1740468734717,-857.98,0.00056164,120]
[354386873,1740468734727,-3140.0,0.00056164,120]
[354386874,1740468734737,-3227.53,0.00056164,120]
[354386875,1740468734747,-500.0,0.00056164,120]
[354386876,1740468734757,-500.0,0.00056164,120]
[354386877,1740468734767,-500.0,0.00056164,120]
[354386878,1740468734777,-500.0,0.00056164,120]
[354386879,1740468734786,-775.19,0.00056164,120]
[354386880,1740468734796,-872.89,0.00056164,120]
[354386881,1740468735049,-500.0,0.00056164,120]
[354386882,1740468735061,-2538.08,0.00056164,120]
[354386883,1740468735077,-500.0,0.00056164,120]
[354386884,1740468735091,-352.56346376,0.00056164,120]
[354386885,1740468735102,-2940.18,0.00056164,120]
[354386886,1740468735113,-3583.88,0.00056164,120]
[354386887,1740468735126,-2559.65,0.00056164,120]
[354386888,1740468735137,-500.0,0.00056164,120]
[354386889,1740468735150,-1118.81,0.00056164,120]
[354386890,1740468735161,-688.16,0.00056164,120]
[354386891,1740468735172,-500.0,0.00056164,120]
[354386892,1740468735183,-3329.23,0.00056164,120]
[354386893,1740468735194,-1907.44,0.00056164,120]
[354386894,1740468735205,-3487.12,0.00056164,120]
[354386895,1740468735217,-568.38,0.00056164,120]
[354386896,1740468735229,-2138.38,0.00056164,120]
[354386897,1740468735242,-1469.89,0.00056164,120]
[354386898,1740468735254,-880.12,0.00056164,120]
[354386899,1740468735266,-500.0,0.00056164,120]
[354386900,1740468735277,-1941.03,0.00056164,120]
[354386901,1740468735289,-998.34,0.00056164,120]
[354386902,1740468735300,-1969.46,0.00056164,120]
[354386903,1740468735311,-3496.1,0.00056164,120]
[354386904,1740468735325,-2020.04,0.00056164,120]
[354386905,1740468735335,-500.0,0.00056164,120]
[354386906,1740468735346,-1704.77,0.00056164,120]
[354386907,1740468735356,-500.0,0.00056164,120]
[354386908,1740468735367,-3000.0,0.00056164,120]
[354386909,1740468735377,-1814.1,0.00056164,120]
[354386910,1740468735387,-518.02322113,0.00056164,120]
[354386911,1740468735397,-3162.2,0.00056164,120]
[354386912,1740468735407,-561.29,0.00056164,120]
[354386913,1740468735418,-558.43,0.00056164,120]
[354386914,1740468735428,-500.0,0.00056164,2]
[354386915,1740468735440,-4214.34,0.00056164,120]
[354386916,1740468735451,-500.0,0.00056164,120]
[354386917,1740468735461,-1793.36,0.00056164,120]
[354386918,1740468735472,-1107.87,0.00056164,120]
[354386919,1740468735482,-1453.67,0.00056164,30]
[354386920,1740468735492,-1291.79,0.00056164,120]
[354386921,1740468735502,-2203.33,0.00056164,120]
[354386922,1740468735512,-500.0,0.00056164,120]
[354386923,1740468735521,-2186.37,0.00056164,120]
[354386924,1740468735532,-2099.71,0.00056164,120]
[354386925,1740468735542,-1541.65,0.00056164,120]
[354386926,1740468735552,-500.0,0.00056164,120]
[354386927,1740468735562,-500.0,0.00056164,2]
[354386928,1740468735574,-519.36001384,0.00056164,120]
[354386929,1740468735584,-500.0,0.00056164,120]
[354386930,1740468735594,-500.0,0.00056164,120]
[354386931,1740468735603,-2864.64,0.00056164,120]
[354386932,1740468735613,-500.0,0.00056164,120]
[354386933,1740468735622,-500.0,0.00056164,120]
[354386934,1740468735631,-1803.36,0.00056164,120]
[354386935,1740468735641,-500.0,0.00056164,120]
[354386936,1740468735650,-1506.59,0.00056164,120]
[354386937,1740468735660,-1568.57,0.00056164,120]
[354386938,1740468735669,-980.59,0.00056164,120]
[354386939,1740468735680,-1792.49,0.00056164,120]
[354386940,1740468735690,-1620.72,0.00056164,120]
[354386941,1740468735700,-415.78207262,0.00056164,120]
[354386942,1740468735711,-500.0,0.00056164,120]
[354386943,1740468735721,-659.49,0.00056164,120]
[354386944,1740468735730,-500.0,0.00056164,120]
[354386945,1740468735740,-849.91,0.00056164,120]
[354386946,1740468735750,-500.0,0.00056164,120]
[354386947,1740468735760,-3340.49,0.00056164,120]
[354386948,1740468735770,-668.51,0.00056164,120]
[354386949,1740468735780,-500.0,0.00056164,120]
[354386950,1740468735790,-680.52,0.00056164,120]
[354386951,1740468735801,-500.0,0.00056164,120]
[354386952,1740468735811,-1680.11,0.00056164,120]
[354386953,1740468735824,-500.0,0.00056164,120]
[354386954,1740468735835,-500.0,0.00056164,120]
[354386955,1740468735845,-2006.24,0.00056164,120]
[354386956,1740468735856,-2470.99,0.00056164,120]
[354386957,1740468735867,-1713.5,0.00056164,120]
[354386958,1740468735878,-300.0,0.000564,120]
[354386959,1740468735888,-563.24,0.00056438,120]
[354386960,1740468735899,-580.45,0.00056438,120]
[354386961,1740468735909,-156.61543,0.00056438,120]
[354386962,1740468735919,-167.182594,0.00056438,120]
[354386963,1740468735930,-406.014874,0.00056438,120]
[354386964,1740468735941,-166.734294,0.00056438,120]
[354386965,1740468735951,-158.663893,0.00056438,120]
[354386966,1740468735961,-554.357489,0.00056438,120]
[354386967,1740468735972,-167.89953646,0.00056438,120]
[354386968,1740468735982,-500.0,0.00056438,120]
[354386969,1740468735993,-500.0,0.00056438,120]
[354386970,1740468736004,-500.0,0.00056438,120]
[354386971,1740468736014,-500.0,0.00056438,120]
[354386972,1740468736025,-500.0,0.00056438,120]
[354386973,1740468736036,-521.68,0.00056438,120]
[354386974,1740468736046,-500.0,0.00056438,120]
[354386975,1740468736056,-500.0,0.00056438,120]
[354386976,1740468736070,-699.56,0.00056438,120]
[354386977,1740468736083,-155.83940211,0.00056438,120]
[354386978,1740468736094,-500.0,0.00056438,120]
[354386979,1740468736106,-502.56270544,0.00056438,2]
[354386980,1740468736116,-500.0,0.00056438,120]
[354386981,1740468736128,-500.0,0.00056438,120]
[354386982,1740468736139,-500.0,0.00056438,120]
[354386983,1740468736152,-500.0,0.00056438,120]
[354386984,1740468736164,-510.41768581,0.00056438,120]
[354386985,1740468736174,-500.0,0.00056438,120]
[354386986,1740468736185,-509.34743528,0.00056438,120]
[354386987,1740468736195,-687.3,0.00056438,120]
[354386988,1740468736205,-500.0,0.00056438,120]
[354386989,1740468736214,-500.0,0.00056438,120]
[354386990,1740468736224,-512.23202875,0.00056438,120]
[354386991,1740468736235,-500.0,0.00056438,120]
[354386992,1740468736246,-500.0,0.00056438,120]
[354386993,1740468736257,-1291.42,0.00056438,120]
[354386994,1740468736267,-596.23887049,0.00056438,120]
[354386995,1740468736277,-500.0,0.00056438,120]
[354386996,1740468736288,-500.0,0.00056438,120]
[354386997,1740468736298,-500.0,0.00056438,120]
[354386998,1740468736308,-500.0,0.00056438,120]
[354386999,1740468736321,-500.0,0.00056438,120]
[354387000,1740468736332,-850.45,0.00056438,120]
[354387001,1740468736344,-500.0,0.00056438,120]
[354387002,1740468736356,-500.0,0.00056438,120]
[354387003,1740468736367,-500.0,0.00056438,120]
[354387004,1740468736379,-510.210525,0.00056438,120]
[354387005,1740468736392,-500.0,0.00056438,120]
[354387006,1740468736404,-836.92,0.00056438,120]
[354387007,1740468736415,-500.0,0.00056438,120]
[354387008,1740468736426,-500.0,0.00056438,120]
[354387009,1740468736438,-925.53,0.00056438,120]
[354387010,1740468736449,-516.53454235,0.00056438,120]
[354387011,1740468736460,-500.0,0.00056438,120]
[354387012,1740468736471,-525.48,0.00056438,120]
[354387013,1740468736482,-500.0,0.00056438,120]
[354387014,1740468736494,-595.9683881,0.00056438,120]
[354387015,1740468736504,-1017.7,0.00056438,120]
[354387016,1740468736515,-620.4,0.00056438,120]
[354387017,1740468736526,-500.0,0.00056438,120]
[354387018,1740468736535,-637.38,0.00056438,120]
[354387019,1740468736545,-500.0,0.00056438,120]
[354387020,1740468736556,-500.0,0.00056438,120]
[354387021,1740468736570,-822.2,0.00056438,120]
[354387022,1740468736581,-500.0,0.00056438,120]
[354387023,1740468736592,-500.0,0.00056438,120]
[354387024,1740468736603,-500.0,0.00056438,120]
[354387025,1740468736614,-500.0,0.00056438,120]
[354387026,1740468736624,-500.0,0.00056438,120]
[354387027,1740468736635,-511.66215731,0.00056438,120]
[354387028,1740468736646,-500.0,0.00056438,120]
[354387029,1740468736657,-543.16,0.00056438,120]
[354387030,1740468736668,-507.76167882,0.00056438,120]
[354387031,1740468736678,-516.38500227,0.00056438,120]
[354387032,1740468736688,-500.0,0.00056438,120]
[354387033,1740468736699,-1571.07,0.00056438,120]
[354387034,1740468736710,-848.24,0.00056438,120]
[354387035,1740468736720,-943.15,0.00056438,120]
[354387036,1740468736731,-500.0,0.00056438,120]
[354387037,1740468736742,-1168.63,0.00056438,120]
[354387038,1740468736752,-509.62707913,0.00056438,120]
[354387039,1740468736762,-500.0,0.00056438,120]
[354387040,1740468736773,-500.0,0.00056438,120]
[354387041,1740468736785,-517.51,0.00056438,120]
[354387042,1740468736796,-249.71456053,0.00056438,120]
[354387043,1740468736806,-951.32,0.00056438,120]
[354387044,1740468736819,-507.43611084,0.00056438,120]
[354387045,1740468736834,-2000.0,0.00056438,30]
[354387046,1740468736845,-500.0,0.00056438,120]
[354387047,1740468736857,-500.0,0.00056438,120]
[354387048,1740468736869,-500.0,0.00056438,120]
[354387049,1740468736880,-500.0,0.00056438,120]
[354387050,1740468736891,-500.0,0.00056438,120]
[354387051,1740468736902,-500.0,0.00056438,120]
[354387052,1740468736914,-500.0,0.00056438,120]
[354387053,1740468736925,-777.26,0.00056438,120]
[354387054,1740468736937,-500.0,0.00056438,120]
[354387055,1740468736948,-500.0,0.00056438,120]
[354387056,1740468736959,-500.0,0.00056438,120]
[354387057,1740468736971,-560.94,0.00056438,120]
[354387058,1740468736982,-511.15164931,0.00056438,120]
[354387059,1740468736993,-500.0,0.00056438,120]
[354387060,1740468737004,-500.0,0.00056438,120]
[354387061,1740468737015,-500.0,0.00056438,120]
[354387062,1740468737025,-500.0,0.00056438,120]
[354387063,1740468737037,-404.43,0.00056438,7]
[354387064,1740468737048,-500.0,0.00056438,120]
[354387065,1740468737059,-1128.12,0.00056438,120]
[354387066,1740468737072,-500.0,0.00056438,120]
[354387067,1740468737086,-505.90053381,0.00056438,120]
[354387068,1740468737097,-500.0,0.00056438,120]
[354387069,1740468737109,-500.0,0.00056438,120]
[354387070,1740468737119,-610.79,0.00056438,120]
[354387071,1740468737132,-630.83,0.00056438,120]
[354387072,1740468737143,-500.0,0.00056438,120]
[354387073,1740468737156,-504.76655311,0.00056438,120]
[354387074,1740468737168,-500.0,0.00056438,120]
[354387075,1740468737179,-239.92831928,0.00056438,120]
[354387076,1740468737191,-500.0,0.00056438,120]
[354387077,1740468737202,-513.43195992,0.00056438,120]
[354387078,1740468737213,-500.0,0.00056438,120]
[354387079,1740468737224,-500.0,0.00056438,120]
[354387080,1740468737235,-500.0,0.00056438,120]
[354387081,1740468737246,-641.8,0.00056438,120]
[354387082,1740468737259,-500.0,0.00056438,120]
[354387083,1740468737269,-500.0,0.00056438,120]
[354387084,1740468737280,-1736.97,0.00056438,120]
[354387085,1740468737290,-500.0,0.00056438,120]
[354387086,1740468737301,-500.0,0.00056438,120]
[354387087,1740468737311,-551.92,0.00056438,120]
[354387088,1740468737323,-829.97,0.00056438,120]
[354387089,1740468737334,-500.0,0.00056438,120]
[354387090,1740468737345,-1884.67,0.00056438,120]
[354387091,1740468737355,-1959.02,0.00056438,120]
[354387092,1740468737365,-687.65,0.00056438,120]
[354387093,1740468737376,-500.0,0.00056438,120]
[354387094,1740468737386,-1049.16,0.00056438,120]
[354387095,1740468737396,-372.53836168,0.00056438,120]
[354387096,1740468737406,-500.0,0.00056438,120]
[354387097,1740468737416,-500.0,0.00056438,120]
[354387098,1740468737427,-561.5931591,0.00056438,120]
[354387099,1740468737438,-500.0,0.00056438,120]
[354387100,1740468737448,-500.0,0.00056438,120]
[354387101,1740468737459,-500.0,0.00056438,120]
[354387102,1740468737470,-500.0,0.00056438,120]
[354387103,1740468737480,-500.0,0.00056438,120]
[354387104,1740468737489,-500.0,0.00056438,120]
[354387105,1740468737499,-910.65,0.00056438,120]
[354387106,1740468737510,-500.0,0.00056438,120]